[Event "MČR v bleskovém šachu družstev 2019"]
[Site "Teplice, Czech Republic"]
[Date "2019.09.14"]
[Round "5.26"]
[White "Cernousek, Lukas"]
[Black "Lorenc, Tomas"]
[Result "0-1"]
[TimeControl "3 mim. + 2 s"]
[WhiteTitle "IM"]
[WhiteFideId "311707"]
[BlackFideId "313203"]
[WhiteElo "2473"]
[BlackElo "2094"]

1. Nf3 {[%clk 00:03:02]} {[%emt 00:00:02]} Nf6 {[%clk 00:03:03]} {[%emt
00:00:01]} 2. e3 {[%clk 00:03:03]} {[%emt 00:00:02]} g6 {[%clk 00:03:02]}
{[%emt 00:00:02]} 3. c4 {[%clk 00:03:02]} {[%emt 00:00:04]} c5 {[%clk
00:03:02]} {[%emt 00:00:02]} 4. b3 {[%clk 00:02:57]} {[%emt 00:00:07]} Bg7
{[%clk 00:03:03]} {[%emt 00:00:01]} 5. Bb2 {[%clk 00:02:57]} {[%emt 00:00:01]}
O-O {[%clk 00:03:03]} {[%emt 00:00:02]} 6. d4 {[%clk 00:02:59]} d6 {[%clk
00:02:54]} {[%emt 00:00:11]} 7. d5 {[%clk 00:02:48]} {[%emt 00:00:14]} Nbd7
{[%clk 00:02:37]} {[%emt 00:00:18]} 8. Be2 {[%clk 00:02:36]} {[%emt 00:00:14]}
b5 {[%clk 00:02:35]} {[%emt 00:00:05]} 9. cxb5 {[%clk 00:02:30]} {[%emt
00:00:08]} a6 {[%clk 00:02:36]} {[%emt 00:00:01]} 10. O-O {[%clk 00:02:22]}
{[%emt 00:00:10]} axb5 {[%clk 00:02:36]} {[%emt 00:00:02]} 11. Bxb5 {[%clk
00:02:23]} {[%emt 00:00:01]} Ba6 {[%clk 00:02:29]} {[%emt 00:00:08]} 12. Nc3
{[%clk 00:02:10]} {[%emt 00:00:15]} Ne4 {[%clk 00:01:56]} {[%emt 00:00:36]} 13.
Bxa6 {[%clk 00:02:00]} {[%emt 00:00:12]} Nxc3 {[%clk 00:01:49]} {[%emt
00:00:08]} 14. Qc2 {[%clk 00:01:54]} {[%emt 00:00:08]} Rxa6 {[%clk 00:01:31]}
{[%emt 00:00:21]} 15. Bxc3 {[%clk 00:01:55]} {[%emt 00:00:01]} Bxc3 {[%clk
00:01:20]} {[%emt 00:00:13]} 16. Qxc3 {[%clk 00:01:56]} Qa8 {[%clk 00:01:20]}
17. Qd2 {[%clk 00:01:27]} {[%emt 00:00:32]} Nf6 {[%clk 00:01:16]} {[%emt
00:00:05]} 18. Rfd1 {[%clk 00:01:20]} {[%emt 00:00:09]} Rb8 {[%clk 00:01:11]}
{[%emt 00:00:07]} 19. Ne1 {[%clk 00:00:48]} {[%emt 00:00:34]} Rxb3 {[%clk
00:01:05]} {[%emt 00:00:08]} 20. axb3 {[%clk 00:00:20]} {[%emt 00:00:31]} Rxa1
{[%clk 00:01:06]} {[%emt 00:00:01]} 21. Rxa1 {[%clk 00:00:16]} {[%emt
00:00:06]} Qxa1 {[%clk 00:01:06]} {[%emt 00:00:01]} 22. f3 {[%clk 00:00:05]}
{[%emt 00:00:14]} Nxd5 {[%clk 00:01:05]} {[%emt 00:00:03]} 23. Kf2 {[%clk
00:00:04]} {[%emt 00:00:03]} Nb4 {[%clk 00:01:04]} {[%emt 00:00:03]} 24. h4
{[%clk 00:00:03]} {[%emt 00:00:03]} Qa2 {[%clk 00:00:59]} {[%emt 00:00:07]} 25.
Ke2 {[%clk 00:00:03]} {[%emt 00:00:02]} Qxd2+ {[%clk 00:00:56]} {[%emt
00:00:04]} 26. Kxd2 {[%clk 00:00:05]} {[%emt 00:00:01]} e5 {[%clk 00:00:53]}
{[%emt 00:00:05]} 27. e4 {[%clk 00:00:05]} {[%emt 00:00:02]} f5 {[%clk
00:00:54]} {[%emt 00:00:01]} 28. Kc3 {[%clk 00:00:07]} Kf7 {[%clk 00:00:54]}
{[%emt 00:00:02]} 29. Kc4 {[%clk 00:00:08]} {[%emt 00:00:02]} Ke6 {[%clk
00:00:54]} 30. g4 {[%clk 00:00:08]} {[%emt 00:00:02]} f4 {[%clk 00:00:44]}
{[%emt 00:00:12]} 31. g5 {[%clk 00:00:03]} {[%emt 00:00:07]} Nc6 {[%clk
00:00:38]} {[%emt 00:00:07]} 32. Nd3 {[%clk 00:00:03]} {[%emt 00:00:03]} Nd4
{[%clk 00:00:38]} 33. Ne1 {[%clk 00:00:05]} {[%emt 00:00:01]} Ne2 {[%clk
00:00:34]} {[%emt 00:00:06]} 34. b4 {[%clk 00:00:05]} cxb4 {[%clk 00:00:34]}
{[%emt 00:00:02]} 35. Kxb4 {[%clk 00:00:07]} d5 {[%clk 00:00:28]} {[%emt
00:00:08]} 36. exd5+ {[%clk 00:00:07]} {[%emt 00:00:02]} Kxd5 {[%clk 00:00:29]}
37. Kb3 {[%clk 00:00:07]} {[%emt 00:00:02]} Kd4 {[%clk 00:00:28]} {[%emt
00:00:02]} 38. Kc2 {[%clk 00:00:08]} {[%emt 00:00:02]} Ke3 {[%clk 00:00:27]}
{[%emt 00:00:02]} 39. Kd1 {[%clk 00:00:03]} {[%emt 00:00:08]} Nd4 {[%clk
00:00:27]} {[%emt 00:00:02]} 0-1

[Event "MČR v bleskovém šachu družstev 2019"]
[Site "Teplice, Czech Republic"]
[Date "2019.09.14"]
[Round "5.27"]
[White "Spicka, Jan"]
[Black "Vrbata, Zbynek"]
[Result "0-1"]
[TimeControl "3 mim. + 2 s"]
[BlackTitle "FM"]
[WhiteFideId "366781"]
[BlackFideId "301256"]
[WhiteElo "1930"]
[BlackElo "2324"]

1. e4 {[%clk 00:03:01]} {[%emt 00:00:03]} e6 {[%clk 00:03:03]} {[%emt
00:00:02]} 2. d4 {[%clk 00:03:01]} {[%emt 00:00:01]} d5 {[%clk 00:03:04]}
{[%emt 00:00:01]} 3. Nd2 {[%clk 00:03:02]} {[%emt 00:00:01]} Nf6 {[%clk
00:03:04]} {[%emt 00:00:03]} 4. e5 {[%clk 00:03:01]} {[%emt 00:00:03]} Nfd7
{[%clk 00:03:04]} {[%emt 00:00:02]} 5. Bd3 {[%clk 00:03:02]} c5 {[%clk
00:03:04]} {[%emt 00:00:02]} 6. c3 {[%clk 00:03:03]} {[%emt 00:00:01]} Nc6
{[%clk 00:03:05]} {[%emt 00:00:02]} 7. Ne2 {[%clk 00:03:04]} cxd4 {[%clk
00:03:06]} {[%emt 00:00:01]} 8. cxd4 {[%clk 00:03:05]} f6 {[%clk 00:03:07]} 9.
exf6 {[%clk 00:03:06]} {[%emt 00:00:02]} Nxf6 {[%clk 00:03:08]} 10. O-O {[%clk
00:02:56]} {[%emt 00:00:11]} Qc7 {[%clk 00:03:09]} {[%emt 00:00:01]} 11. Nf3
{[%clk 00:02:54]} {[%emt 00:00:05]} Bd6 {[%clk 00:03:09]} {[%emt 00:00:01]} 12.
Bg5 {[%clk 00:02:40]} {[%emt 00:00:15]} O-O {[%clk 00:03:09]} {[%emt 00:00:03]}
13. Bh4 {[%clk 00:02:40]} {[%emt 00:00:02]} Nh5 {[%clk 00:02:57]} {[%emt
00:00:14]} 14. Qc2 {[%clk 00:02:05]} {[%emt 00:00:37]} h6 {[%clk 00:02:55]}
{[%emt 00:00:04]} 15. Bg6 {[%clk 00:01:49]} {[%emt 00:00:18]} Rxf3 {[%clk
00:02:34]} {[%emt 00:00:24]} 16. Bxh5 {[%clk 00:01:29]} {[%emt 00:00:22]} Rf5
{[%clk 00:02:34]} {[%emt 00:00:01]} 17. Bg4 {[%clk 00:01:21]} {[%emt 00:00:10]}
Rf7 {[%clk 00:02:35]} {[%emt 00:00:01]} 18. Bg3 {[%clk 00:01:20]} {[%emt
00:00:03]} Bd7 {[%clk 00:02:30]} {[%emt 00:00:07]} 19. Bxd6 {[%clk 00:01:16]}
{[%emt 00:00:07]} Qxd6 {[%clk 00:02:30]} {[%emt 00:00:01]} 20. Rad1 {[%clk
00:01:11]} {[%emt 00:00:07]} Raf8 {[%clk 00:02:26]} {[%emt 00:00:05]} 21. Ng3
{[%clk 00:00:56]} {[%emt 00:00:17]} Rf4 {[%clk 00:02:24]} {[%emt 00:00:04]} 22.
Bf3 {[%clk 00:00:47]} {[%emt 00:00:13]} Nxd4 {[%clk 00:02:24]} {[%emt
00:00:02]} 23. Qd2 {[%clk 00:00:30]} {[%emt 00:00:17]} Nxf3+ {[%clk 00:02:22]}
{[%emt 00:00:04]} 24. gxf3 {[%clk 00:00:31]} {[%emt 00:00:01]} Rxf3 {[%clk
00:02:21]} {[%emt 00:00:04]} 25. Kg2 {[%clk 00:00:23]} {[%emt 00:00:10]} Bc6
{[%clk 00:02:19]} {[%emt 00:00:03]} 26. Rde1 {[%clk 00:00:06]} {[%emt
00:00:20]} Kh8 {[%clk 00:02:10]} {[%emt 00:00:11]} 27. h3 {[%clk 00:00:07]}
{[%emt 00:00:02]} e5 {[%clk 00:02:07]} {[%emt 00:00:05]} 28. Re3 {[%clk
00:00:03]} {[%emt 00:00:05]} d4 {[%clk 00:02:01]} {[%emt 00:00:08]} 29. Rxf3
{[%clk 00:00:04]} {[%emt 00:00:02]} Rxf3 {[%clk 00:01:58]} {[%emt 00:00:04]} 30.
Kh2 {[%clk 00:00:05]} {[%emt 00:00:02]} e4 {[%clk 00:01:56]} {[%emt 00:00:04]}
31. Rd1 {[%clk 00:00:04]} {[%emt 00:00:02]} e3 {[%clk 00:01:54]} {[%emt
00:00:04]} 32. Qxd4 {[%clk 00:00:04]} {[%emt 00:00:02]} Rxf2+ {[%clk 00:01:54]}
{[%emt 00:00:02]} 33. Kg1 {[%clk 00:00:04]} {[%emt 00:00:03]} Qxg3# {[%clk
00:01:54]} {[%emt 00:00:01]} 0-1

[Event "MČR v bleskovém šachu družstev 2019"]
[Site "Teplice, Czech Republic"]
[Date "2019.09.14"]
[Round "5.28"]
[White "Kuba, Jindrich"]
[Black "Lorencova, Vera"]
[Result "1-0"]
[TimeControl "3 mim. + 2 s"]
[WhiteTitle "FM"]
[WhiteFideId "318248"]
[BlackFideId "321397"]
[WhiteElo "2223"]
[BlackElo "1921"]

1. e4 {[%clk 00:03:03]} {[%emt 00:00:01]} d5 {[%clk 00:03:03]} {[%emt
00:00:01]} 2. exd5 {[%clk 00:03:04]} {[%emt 00:00:01]} Nf6 {[%clk 00:03:04]} 3.
d4 {[%clk 00:03:02]} {[%emt 00:00:04]} Nxd5 {[%clk 00:03:04]} {[%emt 00:00:02]}
4. Nf3 {[%clk 00:03:03]} {[%emt 00:00:01]} g6 {[%clk 00:03:04]} {[%emt
00:00:01]} 5. Be2 {[%clk 00:03:04]} {[%emt 00:00:02]} Bg7 {[%clk 00:03:05]}
{[%emt 00:00:01]} 6. O-O {[%clk 00:03:04]} {[%emt 00:00:02]} O-O {[%clk
00:03:05]} {[%emt 00:00:02]} 7. c4 {[%clk 00:03:00]} {[%emt 00:00:06]} Nb6
{[%clk 00:03:04]} {[%emt 00:00:03]} 8. Nc3 {[%clk 00:03:00]} {[%emt 00:00:02]}
Nc6 {[%clk 00:03:03]} {[%emt 00:00:02]} 9. Be3 {[%clk 00:02:50]} {[%emt
00:00:12]} Bf5 {[%clk 00:02:54]} {[%emt 00:00:12]} 10. Rc1 {[%clk 00:02:45]}
{[%emt 00:00:07]} e5 {[%clk 00:02:49]} {[%emt 00:00:06]} 11. d5 {[%clk
00:02:39]} {[%emt 00:00:09]} Ne7 {[%clk 00:02:46]} {[%emt 00:00:05]} 12. Nh4
{[%clk 00:02:24]} {[%emt 00:00:17]} Bd7 {[%clk 00:02:39]} {[%emt 00:00:09]} 13.
Nf3 {[%clk 00:02:25]} f5 {[%clk 00:02:35]} {[%emt 00:00:06]} 14. c5 {[%clk
00:02:17]} {[%emt 00:00:10]} Nbc8 {[%clk 00:02:27]} {[%emt 00:00:10]} 15. Bc4
{[%clk 00:02:17]} {[%emt 00:00:02]} Kh8 {[%clk 00:02:25]} {[%emt 00:00:05]} 16.
Bg5 {[%clk 00:02:11]} {[%emt 00:00:08]} Qe8 {[%clk 00:01:56]} {[%emt 00:00:30]}
17. Qd2 {[%clk 00:02:04]} {[%emt 00:00:09]} Ng8 {[%clk 00:01:35]} {[%emt
00:00:23]} 18. Rfe1 {[%clk 00:01:59]} {[%emt 00:00:07]} e4 {[%clk 00:01:17]}
{[%emt 00:00:20]} 19. Nd4 {[%clk 00:01:56]} {[%emt 00:00:05]} Nce7 {[%clk
00:01:10]} {[%emt 00:00:09]} 20. h4 {[%clk 00:01:32]} {[%emt 00:00:26]} Nf6
{[%clk 00:01:09]} {[%emt 00:00:03]} 21. b4 {[%clk 00:01:27]} {[%emt 00:00:07]}
Ng4 {[%clk 00:01:05]} {[%emt 00:00:05]} 22. f3 {[%clk 00:01:20]} {[%emt
00:00:10]} Ne5 {[%clk 00:00:57]} {[%emt 00:00:10]} 23. Bb3 {[%clk 00:01:15]}
{[%emt 00:00:07]} exf3 {[%clk 00:00:48]} {[%emt 00:00:11]} 24. Nxf3 {[%clk
00:01:11]} {[%emt 00:00:06]} Nxf3+ {[%clk 00:00:41]} {[%emt 00:00:09]} 25. gxf3
{[%clk 00:01:12]} Bf6 {[%clk 00:00:41]} {[%emt 00:00:02]} 26. Bxf6+ {[%clk
00:01:02]} {[%emt 00:00:12]} Rxf6 {[%clk 00:00:42]} 27. Qg5 {[%clk 00:01:03]}
{[%emt 00:00:01]} Qf8 {[%clk 00:00:38]} {[%emt 00:00:06]} 28. Re2 {[%clk
00:00:55]} {[%emt 00:00:10]} Re8 {[%clk 00:00:37]} {[%emt 00:00:02]} 29. Rce1
{[%clk 00:00:57]} h6 {[%clk 00:00:30]} {[%emt 00:00:10]} 30. Qe3 {[%clk
00:00:52]} {[%emt 00:00:06]} Rf7 {[%clk 00:00:27]} {[%emt 00:00:05]} 31. Qd4+
{[%clk 00:00:53]} {[%emt 00:00:01]} Kh7 {[%clk 00:00:27]} {[%emt 00:00:02]} 32.
b5 {[%clk 00:00:51]} {[%emt 00:00:05]} Qg7 {[%clk 00:00:22]} {[%emt 00:00:07]}
33. Qxg7+ {[%clk 00:00:50]} {[%emt 00:00:02]} Rxg7 {[%clk 00:00:23]} 34. Kf2
{[%clk 00:00:51]} {[%emt 00:00:02]} g5 {[%clk 00:00:24]} {[%emt 00:00:01]} 35.
hxg5 {[%clk 00:00:51]} {[%emt 00:00:02]} Rxg5 {[%clk 00:00:23]} {[%emt
00:00:03]} 36. d6 {[%clk 00:00:47]} {[%emt 00:00:06]} Rh5 {[%clk 00:00:08]}
{[%emt 00:00:17]} 37. Rxe7+ {[%clk 00:00:46]} {[%emt 00:00:03]} 1-0

[Event "MČR v bleskovém šachu družstev 2019"]
[Site "Teplice, Czech Republic"]
[Date "2019.09.14"]
[Round "6.1"]
[White "Vykouk, Jan"]
[Black "Kociscak, Jiri"]
[Result "1-0"]
[TimeControl "3 mim. + 2 s"]
[WhiteTitle "IM"]
[BlackTitle "IM"]
[BlackFideId "322121"]
[WhiteElo "2439"]
[BlackElo "2417"]

1. e4 {[%clk 00:03:03]} {[%emt 00:04:49]} e5 {[%clk 00:03:03]} {[%emt
00:00:01]} 2. Nf3 {[%clk 00:03:04]} Nc6 {[%clk 00:03:04]} {[%emt 00:00:01]} 3.
Bc4 {[%clk 00:03:04]} {[%emt 00:00:02]} Nf6 {[%clk 00:03:04]} {[%emt 00:00:01]}
4. d3 {[%clk 00:03:05]} {[%emt 00:00:01]} Be7 {[%clk 00:03:05]} {[%emt
00:00:01]} 5. O-O {[%clk 00:03:05]} {[%emt 00:00:02]} O-O {[%clk 00:03:04]}
{[%emt 00:00:02]} 6. Re1 {[%clk 00:03:03]} {[%emt 00:00:04]} d6 {[%clk
00:03:05]} {[%emt 00:00:02]} 7. c3 {[%clk 00:03:04]} {[%emt 00:00:02]} h6
{[%clk 00:03:01]} {[%emt 00:00:05]} 8. Nbd2 {[%clk 00:03:03]} {[%emt 00:00:03]}
Nh7 {[%clk 00:03:01]} {[%emt 00:00:02]} 9. d4 {[%clk 00:02:58]} {[%emt
00:00:07]} Bf6 {[%clk 00:03:02]} {[%emt 00:00:01]} 10. Nf1 {[%clk 00:02:31]}
{[%emt 00:00:28]} Ng5 {[%clk 00:02:38]} {[%emt 00:00:26]} 11. Nxg5 {[%clk
00:02:20]} {[%emt 00:00:13]} hxg5 {[%clk 00:02:07]} {[%emt 00:00:33]} 12. d5
{[%clk 00:02:21]} {[%emt 00:00:01]} Ne7 {[%clk 00:02:07]} {[%emt 00:00:02]} 13.
Be2 {[%clk 00:02:22]} {[%emt 00:00:01]} c6 {[%clk 00:02:02]} {[%emt 00:00:08]}
14. c4 {[%clk 00:02:22]} {[%emt 00:00:02]} Qb6 {[%clk 00:01:38]} {[%emt
00:00:26]} 15. b3 {[%clk 00:02:06]} {[%emt 00:00:18]} a5 {[%clk 00:01:21]}
{[%emt 00:00:20]} 16. Be3 {[%clk 00:02:06]} {[%emt 00:00:01]} Qc7 {[%clk
00:01:19]} {[%emt 00:00:04]} 17. Bg4 {[%clk 00:02:06]} {[%emt 00:00:02]} a4
{[%clk 00:01:16]} {[%emt 00:00:05]} 18. Bxc8 {[%clk 00:02:06]} {[%emt
00:00:02]} Rfxc8 {[%clk 00:01:17]} {[%emt 00:00:02]} 19. Qg4 {[%clk 00:02:03]}
{[%emt 00:00:04]} b5 {[%clk 00:01:12]} {[%emt 00:00:08]} 20. Bxg5 {[%clk
00:01:58]} {[%emt 00:00:07]} Bxg5 {[%clk 00:01:12]} {[%emt 00:00:01]} 21. Qxg5
{[%clk 00:01:59]} {[%emt 00:00:02]} Ng6 {[%clk 00:00:45]} {[%emt 00:00:29]} 22.
g3 {[%clk 00:01:52]} {[%emt 00:00:09]} cxd5 {[%clk 00:00:32]} {[%emt 00:00:15]}
23. cxd5 {[%clk 00:01:52]} {[%emt 00:00:02]} Qc2 {[%clk 00:00:31]} {[%emt
00:00:03]} 24. Ne3 {[%clk 00:01:31]} {[%emt 00:00:22]} Qxe4 {[%clk 00:00:29]}
{[%emt 00:00:04]} 25. Nf5 {[%clk 00:01:32]} {[%emt 00:00:01]} Qb4 {[%clk
00:00:24]} {[%emt 00:00:08]} 26. h4 {[%clk 00:01:17]} {[%emt 00:00:17]} Rc2
{[%clk 00:00:08]} {[%emt 00:00:19]} 27. h5 {[%clk 00:01:09]} {[%emt 00:00:10]}
Qc5 {[%clk 00:00:09]} {[%emt 00:00:01]} 28. Rf1 {[%clk 00:00:48]} {[%emt
00:00:23]} axb3 {[%clk 00:00:09]} {[%emt 00:00:02]} 29. hxg6 {[%clk 00:00:45]}
{[%emt 00:00:04]} fxg6 {[%clk 00:00:07]} {[%emt 00:00:04]} 30. Qxg6 {[%clk
00:00:45]} {[%emt 00:00:03]} Ra7 {[%clk 00:00:07]} {[%emt 00:00:02]} 31. Qe6+
{[%clk 00:00:25]} {[%emt 00:00:22]} Kh7 {[%clk 00:00:04]} {[%emt 00:00:02]} 32.
Ne3 {[%clk 00:00:21]} {[%emt 00:00:08]} Rcxa2 {[%clk 00:00:03]} {[%emt
00:00:03]} 33. Rac1 {[%clk 00:00:18]} {[%emt 00:00:06]} 1-0

[Event "MČR v bleskovém šachu družstev 2019"]
[Site "Teplice, Czech Republic"]
[Date "2019.09.14"]
[Round "6.2"]
[White "Polak, Tomas"]
[Black "Studnicka, Tomas"]
[Result "1-0"]
[TimeControl "3 mim. + 2 s"]
[WhiteTitle "GM"]
[BlackTitle "IM"]
[WhiteFideId "300560"]
[WhiteElo "2510"]
[BlackElo "2215"]

1. d4 {[%emt 00:00:01]} Nf6 2. c4 {[%emt 00:00:01]} g6 3. Nc3 {[%clk 00:03:05]}
Bg7 {[%clk 00:03:06]} {[%emt 00:00:02]} 4. e4 {[%clk 00:03:06]} d6 {[%clk
00:03:07]} 5. Nf3 {[%clk 00:03:07]} O-O {[%emt 00:00:02]} 6. Be2 {[%emt
00:00:01]} e5 {[%clk 00:03:08]} {[%emt 00:00:01]} 7. O-O {[%clk 00:03:10]}
{[%emt 00:00:01]} Nc6 {[%clk 00:03:10]} 8. d5 {[%clk 00:03:11]} Ne7 {[%clk
00:03:11]} {[%emt 00:00:02]} 9. b4 {[%clk 00:03:12]} Ne8 {[%clk 00:03:12]}
{[%emt 00:00:01]} 10. c5 {[%clk 00:03:08]} {[%emt 00:00:06]} f5 {[%clk
00:03:10]} {[%emt 00:00:04]} 11. Ng5 {[%clk 00:03:00]} {[%emt 00:00:10]} h6
{[%clk 00:02:48]} {[%emt 00:00:24]} 12. Ne6 {[%clk 00:03:01]} Bxe6 {[%clk
00:02:49]} {[%emt 00:00:02]} 13. dxe6 {[%clk 00:03:02]} fxe4 {[%clk 00:02:49]}
{[%emt 00:00:01]} 14. cxd6 {[%clk 00:02:53]} {[%emt 00:00:11]} cxd6 {[%clk
00:02:50]} {[%emt 00:00:02]} 15. Nxe4 {[%clk 00:02:44]} {[%emt 00:00:11]} b6
{[%clk 00:01:58]} {[%emt 00:00:53]} 16. b5 {[%clk 00:02:29]} {[%emt 00:00:17]}
d5 {[%clk 00:01:55]} {[%emt 00:00:05]} 17. Ba3 {[%clk 00:02:30]} {[%emt
00:00:01]} Nc7 {[%clk 00:01:34]} {[%emt 00:00:22]} 18. Bg4 {[%clk 00:02:13]}
{[%emt 00:00:19]} Re8 {[%clk 00:01:29]} {[%emt 00:00:07]} 19. Nd6 {[%clk
00:02:09]} {[%emt 00:00:06]} Rf8 {[%clk 00:01:23]} {[%emt 00:00:08]} 20. Rc1
{[%clk 00:01:49]} {[%emt 00:00:23]} Bf6 {[%clk 00:01:03]} {[%emt 00:00:22]} 21.
Nf7 {[%clk 00:01:43]} {[%emt 00:00:08]} Qb8 {[%clk 00:01:04]} 22. Bd6 {[%clk
00:01:31]} {[%emt 00:00:14]} Rc8 {[%clk 00:01:04]} {[%emt 00:00:01]} 23. Nxe5
{[%clk 00:01:24]} {[%emt 00:00:10]} Qb7 {[%clk 00:00:58]} {[%emt 00:00:08]} 24.
Nd7 {[%clk 00:01:16]} {[%emt 00:00:09]} Bh4 {[%clk 00:00:49]} {[%emt 00:00:11]}
25. g3 {[%clk 00:01:15]} {[%emt 00:00:04]} Nxb5 {[%clk 00:00:41]} {[%emt
00:00:09]} 26. Be5 {[%clk 00:01:07]} {[%emt 00:00:09]} Bg5 {[%clk 00:00:35]}
{[%emt 00:00:09]} 27. f4 {[%clk 00:01:07]} {[%emt 00:00:02]} h5 {[%clk
00:00:35]} {[%emt 00:00:02]} 28. Rxc8+ {[%clk 00:01:02]} {[%emt 00:00:07]} Rxc8
{[%clk 00:00:36]} 29. Bxh5 {[%clk 00:01:03]} {[%emt 00:00:02]} Bh6 {[%clk
00:00:35]} {[%emt 00:00:03]} 30. Bf3 {[%clk 00:00:52]} {[%emt 00:00:12]} Nc3
{[%clk 00:00:34]} {[%emt 00:00:04]} 31. Qd3 {[%clk 00:00:46]} {[%emt 00:00:09]}
Ne4 {[%clk 00:00:31]} {[%emt 00:00:04]} 32. Nf6+ {[%clk 00:00:44]} {[%emt
00:00:04]} Kf8 {[%clk 00:00:33]} 33. Nxe4 {[%clk 00:00:42]} {[%emt 00:00:04]}
dxe4 {[%clk 00:00:33]} {[%emt 00:00:01]} 34. Bxe4 {[%clk 00:00:43]} {[%emt
00:00:02]} Nc6 {[%clk 00:00:30]} {[%emt 00:00:05]} 35. Qd6+ {[%clk 00:00:34]}
{[%emt 00:00:10]} Kg8 {[%clk 00:00:30]} {[%emt 00:00:03]} 36. Qd7 {[%clk
00:00:22]} {[%emt 00:00:14]} 1-0

[Event "MČR v bleskovém šachu družstev 2019"]
[Site "Teplice, Czech Republic"]
[Date "2019.09.14"]
[Round "6.3"]
[White "Cech, Pavel"]
[Black "Stocek, Jiri"]
[Result "0-1"]
[TimeControl "3 mim. + 2 s"]
[WhiteTitle "IM"]
[BlackTitle "GM"]
[BlackFideId "304760"]
[WhiteElo "2387"]
[BlackElo "2505"]

1. d4 {[%clk 00:03:02]} {[%emt 00:00:01]} d6 {[%clk 00:03:03]} {[%emt
00:00:01]} 2. e4 {[%clk 00:03:01]} {[%emt 00:00:03]} Nf6 {[%clk 00:03:04]}
{[%emt 00:00:01]} 3. Nc3 {[%clk 00:03:03]} g6 {[%clk 00:03:05]} {[%emt
00:00:02]} 4. Be3 {[%clk 00:03:03]} {[%emt 00:00:02]} a6 {[%clk 00:03:05]}
{[%emt 00:00:02]} 5. Bd3 {[%clk 00:03:03]} {[%emt 00:00:02]} Bg7 {[%clk
00:02:54]} {[%emt 00:00:12]} 6. Qd2 {[%clk 00:02:58]} {[%emt 00:00:08]} Ng4
{[%clk 00:02:53]} {[%emt 00:00:03]} 7. Nf3 {[%clk 00:02:58]} {[%emt 00:00:02]}
Nxe3 {[%clk 00:02:51]} {[%emt 00:00:04]} 8. fxe3 {[%clk 00:02:58]} {[%emt
00:00:01]} b5 {[%clk 00:02:46]} {[%emt 00:00:07]} 9. a4 {[%clk 00:02:54]}
{[%emt 00:00:07]} b4 {[%clk 00:02:44]} {[%emt 00:00:04]} 10. Nd5 {[%clk
00:02:54]} {[%emt 00:00:01]} a5 {[%clk 00:02:39]} {[%emt 00:00:07]} 11. c3
{[%clk 00:02:01]} {[%emt 00:00:55]} c6 {[%clk 00:02:20]} {[%emt 00:00:22]} 12.
Nf4 {[%clk 00:02:00]} {[%emt 00:00:03]} e5 {[%clk 00:02:20]} {[%emt 00:00:02]}
13. Ne2 {[%clk 00:01:54]} {[%emt 00:00:08]} bxc3 {[%clk 00:02:17]} {[%emt
00:00:05]} 14. bxc3 {[%clk 00:01:55]} {[%emt 00:00:02]} Nd7 {[%clk 00:02:10]}
{[%emt 00:00:08]} 15. O-O {[%clk 00:01:53]} {[%emt 00:00:04]} O-O {[%clk
00:02:09]} {[%emt 00:00:03]} 16. Rfb1 {[%clk 00:01:28]} {[%emt 00:00:27]} Re8
{[%clk 00:01:52]} {[%emt 00:00:20]} 17. Ng3 {[%clk 00:01:17]} {[%emt 00:00:12]}
d5 {[%clk 00:01:40]} {[%emt 00:00:14]} 18. exd5 {[%clk 00:01:14]} {[%emt
00:00:05]} cxd5 {[%clk 00:01:39]} {[%emt 00:00:03]} 19. e4 {[%clk 00:01:15]}
{[%emt 00:00:01]} exd4 {[%clk 00:01:35]} {[%emt 00:00:06]} 20. cxd4 {[%clk
00:01:15]} {[%emt 00:00:02]} dxe4 {[%clk 00:01:32]} {[%emt 00:00:06]} 21. Bxe4
{[%clk 00:01:00]} {[%emt 00:00:17]} Ra6 {[%clk 00:01:30]} {[%emt 00:00:03]} 22.
Bb7 {[%clk 00:00:53]} {[%emt 00:00:10]} Bxb7 {[%clk 00:01:23]} {[%emt
00:00:10]} 23. Rxb7 {[%clk 00:00:53]} {[%emt 00:00:01]} Nc5 {[%clk 00:01:12]}
{[%emt 00:00:12]} 24. Rb5 {[%clk 00:00:54]} {[%emt 00:00:01]} Ne4 {[%clk
00:00:41]} {[%emt 00:00:33]} 25. Nxe4 {[%clk 00:00:52]} {[%emt 00:00:05]} Rxe4
{[%clk 00:00:41]} {[%emt 00:00:02]} 26. Rd1 {[%clk 00:00:49]} {[%emt 00:00:05]}
Rd6 {[%clk 00:00:41]} {[%emt 00:00:02]} 27. d5 {[%clk 00:00:40]} {[%emt
00:00:11]} Rxa4 {[%clk 00:00:39]} {[%emt 00:00:04]} 28. Rdb1 {[%clk 00:00:34]}
{[%emt 00:00:09]} Rb4 {[%clk 00:00:33]} {[%emt 00:00:08]} 29. R1xb4 {[%clk
00:00:26]} {[%emt 00:00:10]} axb4 {[%clk 00:00:33]} {[%emt 00:00:01]} 30. Qxb4
{[%clk 00:00:26]} {[%emt 00:00:02]} Bf8 {[%clk 00:00:33]} {[%emt 00:00:02]} 31.
Rb8 {[%clk 00:00:13]} {[%emt 00:00:16]} Qf6 {[%clk 00:00:31]} {[%emt 00:00:03]}
32. h3 {[%clk 00:00:08]} {[%emt 00:00:07]} Rd8 {[%clk 00:00:24]} {[%emt
00:00:09]} 33. Qb5 {[%clk 00:00:08]} {[%emt 00:00:02]} Qa1+ {[%clk 00:00:20]}
{[%emt 00:00:07]} 34. Kf2 {[%clk 00:00:07]} {[%emt 00:00:03]} Qa7+ {[%clk
00:00:18]} {[%emt 00:00:04]} 35. Rb6 {[%clk 00:00:06]} {[%emt 00:00:04]} Rb8
{[%clk 00:00:15]} {[%emt 00:00:04]} 0-1